Cogmind - Beta 14 @@@ ROGUE MODE // 2025.04.26 @ 16:02:37 Player: nameimpending Result: Destroyed by Autobeam Turret with Autobeam Performance ------------- Evolutions (0) 0 Regions Visited (2) 400 Robots Destroyed (20) 100 Value Destroyed (538) 538 Prototype IDs (0) 0 Alien Tech Used (0) 0 Bonus (0) 0 TOTAL SCORE: 1038 Bonus ------- None Cogmind --------- Core Integrity 0/250 Matter 257/300 Energy 98/100 System Corruption 0% Temperature Cool (14) Movement Hovering (70) Location -10/Subcaves Parts ------- > --- POWER (1) -------- (None) > --- PROPULSION (2) --- Makeshift Hover Unit > --- UTILITY (2) ------ Medium Storage Unit > --- WEAPON (2) ------- (None) > --- INVENTORY (10) --- Light Ion Engine Light Treads Heat Sink Small Storage Unit Medium Matter Pod (74) Improved Terrain Scanner Subdweller Laser EMP Blaster Peak State ------------ > --- POWER ------------ Light Nuclear Core > --- PROPULSION ------- Improved Treads Improved Treads > --- UTILITY ---------- Medium Storage Unit Improved Terrain Scanner > --- WEAPON ----------- Light EM Pulse Cannon Light EM Pulse Cannon > --- INVENTORY -------- Light Ion Engine Light Treads Wheel Heat Sink Small Storage Unit Medium Matter Pod Improved Terrain Scanner EMP Blaster EMP Blaster Grenade Launcher [Rating: 16] Favorites ----------- Power Light Ion Engine Engine Light Ion Engine Power Core Light Nuclear Core Propulsion Improved Treads Treads Improved Treads Wheel Subdweller Monowheel Hover Unit Makeshift Hover Unit Utility Medium Storage Unit Device Improved Terrain Scanner Storage Medium Storage Unit Weapon Light EM Pulse Cannon Energy Gun Subdweller Laser Energy Cannon Light EM Pulse Cannon Ballistic Gun Light Assault Rifle Launcher Grenade Launcher Build | -11 -10 -10 ------- Run | Yrd Mat Sub Slots Evolved . | . . . Power . | . . . Propulsion . | . . . Utility . | . . . Weapon . | . . . Parts Attached 26 | 7 12 7 Power 2 | 1 1 . Engine 1 | 1 . . Core 1 | . 1 . Reactor . | . . . Propulsion 6 | 2 2 2 Treads 4 | 2 2 . Leg . | . . . Wheel 1 | . . 1 Hover 1 | . . 1 Flight . | . . . Utility 4 | 2 2 . Device 2 | 1 1 . Storage 2 | 1 1 . Processor . | . . . Hackware . | . . . Protection . | . . . Artifact . | . . . Weapon 14 | 2 7 5 Energy Gun 1 | . . 1 Energy Cannon 6 | . 5 1 Ballistic Gun 2 | 2 . . Ballistic Cannon . | . . . Launcher 5 | . 2 3 Special Weapon . | . . . Impact Weapon . | . . . Slashing Weapon . | . . . Piercing Weapon . | . . . Special Melee Weapon . | . . . Unidentified Prototypes . | . . . Parts Lost 10 | . 1 9 Power 1 | . . 1 Propulsion 3 | . . 3 Utility 1 | . . 1 Weapon 5 | . 1 4 Highest Loss Streak 5 | . 1 5 To Critical Strikes . | . . . Average Slot Usage (%) 96 | . 99 90 Engine 6 | . 10 . Core 7 | . 3 14 Treads 25 | . 28 19 Wheel 1 | . . 4 Device 12 | . 14 10 Storage 14 | . 14 14 Energy Gun 1 | . . 3 Energy Cannon 17 | . 20 13 Ballistic Gun 3 | . 5 . Launcher 4 | . 2 7 Peak Build Rating 16 | 9 16 16 Average Rating 13 | 6 13 14 On Entrance 8 | . 9 16 Naked Turns . | . . . Heaviest Build 24 | 11 24 24 Greatest Support 46 | 40 46 46 Greatest Overweight (x) 1 | . . 1 Average Overweight (x) . | . . . Largest Inventory Capacity 10 | 8 10 10 Average Capacity 9 | 7 9 10 Most Carried 10 | 2 10 10 Average Carried 7 | 1 7 8 Final Capacity 10 | 8 10 10 Final Carried 10 | 2 10 8 Class Distribution -------------------- 100% | Mutant Dominant Class ---------------- Mutant | -10/Materials Mutant | -10/Subcaves Resources | -11 -10 -10 ----------- Run | Yrd Mat Sub Matter Collected 587 | 268 198 121 Remotely . | . . . Salvage Created 550 | 12 443 95 Parts 45 | 5 33 7 Haulers Intercepted . | . . . Recyclers Shooed . | . . . Parts Field Recycled . | . . . Retrieved Matter . | . . . Parts Self-Destructed 3 | . . 3 Prevented . | . . . Kills | -11 -10 -10 ------- Run | Yrd Mat Sub Combat Hostiles Destroyed 15 | . 11 4 Cannons 4 | . 4 . AOE 10 | . 7 3 Classes Destroyed 7 | 1 5 1 Builder 1 | . 1 . Tunneler 1 | 1 . . Recycler 1 | . 1 . Watcher 2 | . 2 . Swarmer 3 | . 3 . Grunt 8 | . 8 . Subdweller 4 | . . 4 Best Kill Streak 10 | 1 10 2 Combat Bots Only 8 | . 8 2 Max Kills in Single Turn 3 | 1 3 1 Gunslinging . | . . . Exploded 2 | . 2 1 Melee . | . . . Uniques/NPCs Destroyed . | . . . Combat | -11 -10 -10 -------- Run | Yrd Mat Sub Hostile Shots Fired 138 | . 45 93 Missed 44 | . 14 30 Damage Taken 1281 | . 373 908 Core 251 | . 98 153 Absorbed by Shields . | . . . Core Remaining (%) 100 | 100 . . Volleys Fired 37 | 2 22 13 Largest 2 | 2 2 2 Hottest 112 | 40 112 112 Shots Fired 68 | 4 39 25 Gun 4 | 4 . . Cannon 46 | . 32 14 Launcher 18 | . 7 11 Special . | . . . Kinetic 4 | 4 . . Thermal . | . . . Explosive 12 | . 7 5 Electromagnetic 52 | . 32 20 Robot Hit Streak 13 | 1 5 13 Robot Miss Streak 3 | 3 3 2 Penetration Max . | . . . Secondary Targets . | . . . Shots Hit Robots 39 | 1 20 18 Core Hits 28 | 1 19 8 Critical Kills . | . . . Critical Parts Destroyed . | . . . Critical Strikes . | . . . Melee Attacks . | . . . Impact . | . . . Slashing . | . . . Piercing . | . . . Sneak Attacks . | . . . Combat Hostiles . | . . . Follow-up Attacks . | . . . Damage Inflicted 1526 | 10 944 572 Guns 10 | 10 . . Cannons 654 | . 468 186 Explosions 861 | . 476 385 Melee . | . . . Ramming 1 | . . 1 Kinetic 10 | 10 . . Thermal 75 | . 75 . Explosive 694 | . 401 293 Electromagnetic 746 | . 468 278 Impact . | . . . Slashing . | . . . Piercing . | . . . Highest Corruption . | . . . Average Corruption . | . . . Corruption Purged . | . . . Corruption Blocked . | . . . Overload Shots . | . . . Overflow Damage 41 | . 41 . Projectiles 14 | . 14 . Explosions 27 | . 27 . Melee . | . . . Knockbacks . | . . . Impact . | . . . Kinetic . | . . . Secondary . | . . . Self-Inflicted Damage 8 | . . 8 Shots 1 | . . 1 Rammed 1 | . . 1 Targets Rammed 1 | . . 1 Kicked . | . . . Crushed . | . . . Highest Temperature 94 | . 94 . Average Temperature 35 | . 35 . Received Heat Transfer 369 | . 153 216 Siege Activations . | . . . Robots Corrupted 1 | . . 1 Combat Hostiles 1 | . . 1 Parts Fried 2 | . 1 1 Impact Corruptions . | . . . Robots Melted . | . . . Combat Hostiles . | . . . Parts Melted . | . . . Heat Transferred 150 | . 150 . Parts Sabotaged . | . . . Parts Stolen . | . . . Parts Stripped . | . . . Power Chain Reactions 2 | . 2 . Alert | -11 -10 -10 ------- Run | Yrd Mat Sub Peak Influence 381 | 5 381 . Initial 3 | . 3 . Average 132 | 2 144 . Maximum Alert Level 1 | . 1 . Low Security (%) 69 | 100 66 . Level 1 30 | . 33 . Level 2 . | . . . Level 3 . | . . . Level 4 . | . . . Level 5 . | . . . High Security . | . . . Max Security . | . . . Squads Dispatched 2 | . 2 . Investigation 2 | . 2 . Extermination . | . . . Reinforcement . | . . . Assault . | . . . Garrison . | . . . Intercept . | . . . Searches Triggered . | . . . Construction Impeded . | . . . Haulers Reinforced . | . . . Active Scanning Responses . | . . . Cargo Convoy Interrupts . | . . . Stealth | -11 -10 -10 --------- Run | Yrd Mat Sub Distress Signals . | . . . Communications Jammed . | . . . Distress Signals . | . . . Times Spotted 34 | . 18 16 Peak Tracking Total 6 | . 4 6 Tactical Retreats 6 | . 2 4 Traps | -11 -10 -10 ------- Run | Yrd Mat Sub Traps Triggered 2 | . 2 . Indirectly . | . . . Trap Hack Attempts . | . . . Triggered . | . . . Disarmed . | . . . Reprogrammed . | . . . Reused . | . . . Traps Extracted . | . . . Installed . | . . . Triggered . | . . . Machines | -11 -10 -10 ---------- Run | Yrd Mat Sub Machines Disabled . | . . . Max in Single Turn . | . . . Machines Repaired . | . . . Machines Dismantled . | . . . Machines Sabotaged . | . . . Overloaded Fab Kills . | . . . Hacking | -11 -10 -10 --------- Run | Yrd Mat Sub Machines Accessed 7 | . 7 . Terminals 6 | . 6 . Fabricators . | . . . Repair Stations . | . . . Recycling Units 1 | . 1 . Scanalyzers . | . . . Garrison Access . | . . . Total Hacks 19 | . 19 . Successful 10 | . 10 . Failed 9 | . 9 . Catastrophic 3 | . 3 . Database Lockouts . | . . . Manual 18 | . 18 . Terminals 18 | . 18 . Fabricators . | . . . Repair Stations . | . . . Recycling Units 1 | . 1 . Scanalyzers . | . . . Garrison Access . | . . . Terminal Hacks 3 | . 3 . Branch Access Points 1 | . 1 . Emergency Access Points 1 | . 1 . Terminal Index 1 | . 1 . Fabricator Hacks . | . . . Repair Station Hacks . | . . . Recycling Unit Hacks . | . . . Scanalyzer . | . . . Garrison Access Hacks . | . . . Unauthorized Hacks 7 | . 7 . Terminals 6 | . 6 . Botnet 6 | . 6 . Fabricators . | . . . Repair Stations . | . . . Recycling Units 1 | . 1 . Tunnel 1 | . 1 . Scanalyzers . | . . . Garrison Access . | . . . Data Cores Recovered . | . . . Used . | . . . Hacking Detections 6 | . 6 . Full Trace Events 1 | . 1 . Feedback Events . | . . . Feedback Blocked . | . . . Robot Schematics Acquired . | . . . Robots Built . | . . . Authchips . | . . . Time . | . . . Total Robot Build Rating . | . . . Part Schematics Acquired . | . . . Parts Built . | . . . Authchips . | . . . Time . | . . . Total Part Build Rating . | . . . Parts Repaired . | . . . Time . | . . . Parts Recycled . | . . . Recycled Matter . | . . . Retrieved Matter . | . . . Retrieved Components . | . . . Parts Scanalyzed . | . . . Part Schematics Acquired . | . . . Parts Damaged . | . . . Bothacking | -11 -10 -10 ------------ Run | Yrd Mat Sub Used RIF Installer . | . . . Robots Hacked . | . . . Non-combat . | . . . Combat . | . . . Robot Hacks Applied . | . . . Relay Couplers Released . | . . . Fabnet Peak Effective % . | . . . Robots Rewired . | . . . Allies Hacked . | . . . Hacks Repelled . | . . . Allies | -11 -10 -10 -------- Run | Yrd Mat Sub Total Allies . | . . . Largest Group . | . . . Highest-Rated Group . | . . . Highest-Rated Ally . | . . . Total Orders . | . . . Ally Attacks . | . . . Total Damage . | . . . Kills . | . . . Allies Corrupted . | . . . Allies Melted . | . . . Intel | -11 -10 -10 ------- Run | Yrd Mat Sub Robot Analysis Total . | . . . Derelict Logs Recovered 3 | . . 3 Drone Launches . | . . . Drone Recoveries . | . . . Exploration | -11 -10 -10 ------------- Run | Yrd Mat Sub Turns Passed 1428 | 85 891 452 Spaces Moved 829 | 44 495 290 Core 2 | 2 . . Treads 708 | 42 495 171 Legs . | . . . Wheels 116 | . . 116 Hover 3 | . . 3 Flight . | . . . Fastest Speed 50 | 50 160 70 Average Speed 152 | 155 160 139 Slowest Speed 160 | 160 160 160 Overloaded Moves . | . . . Propulsion Burnouts . | . . . Robots Hopped . | . . . Cave-ins Triggered . | . . . Exploration Rate (%) 34 | 4 82 18 Regions Visited 2 Branch Regions 1 Pre-discovered Areas 2 | . 1 1 Known Exits Taken . | . . . Unknown Exits Taken 2 | 1 1 . Scrap Searched . | . . . Spaces Dug . | . . . Terrain Destroyed 69 | . 41 28 Melee . | . . . Projectile . | . . . AOE 69 | . 41 28 Terrain Rammed . | . . . Walls Destroyed . | . . . Machines Disabled . | . . . Actions | -11 -10 -10 --------- Run | Yrd Mat Sub Total 920 | 54 552 314 Wait 15 | . 15 . Move 827 | 43 494 290 Hop . | . . . Pick Up 9 | 2 6 1 Fast Attach 9 | 7 . 2 Attach 4 | . 1 3 Detach 1 | . . 1 Swap 13 | . 11 2 Drop 4 | . 3 1 Fire 37 | 2 22 13 Melee . | . . . Ram 1 | . . 1 Kick . | . . . Crush . | . . . Escape Stasis . | . . . Rewire . | . . . Trap . | . . . Miscellaneous . | . . . Route ------- -11/Scrapyard -10/Materials (discovered 4 exits: [*Mat x2] / *Min / [*Sub]) -10/Subcaves (discovered 1 exit: *Rec) History --------- Turn | Location | Event 9 | -11/Scrapyard | Discovered new exit (range 15) 86 | -11/Scrapyard | Entered Materials 307 | -10/Materials | Build established: Mutant 326 | -10/Materials | Discovered new exit (range 5) 408 | -10/Materials | Discovered new exit (range 16) 527 | -10/Materials | Discovered new exit (range 5) 583 | -10/Materials | Identified exit to Mines 729 | -10/Materials | Destroyed 8 combat bots 958 | -10/Materials | Discovered new exit (range 10) 977 | -10/Materials | Entered Subcaves 1005 | -10/Subcaves | Learned location of Zion (-6) 1019 | -10/Subcaves | Shifting Twisted Machinery released Flamer 1041 | -10/Subcaves | Shifting Twisted Machinery released Sub. Monowheel 1182 | -10/Subcaves | Learned 2 Materials zone layouts 1241 | -10/Subcaves | Identified exit to Recycling 1273 | -10/Subcaves | Core integrity fell below 50% 1338 | -10/Subcaves | Lost 5 parts (2n1u2w) 1425 | -10/Subcaves | Core integrity fell below 20% 1429 | -10/Subcaves | Destroyed by Autobeam Turret with Autobeam Last Messages --------------- 01262_ T5-7WP(R) IFF system glitched. 01283_ 6P-Y46(R) IFF system glitched. 01285_ T5-7WP(R) system terminally corrupted. 01285_ Sub. Power Source fried. CW-K30(R) emerges from concealment. 01292_ Imp. Treads destroyed. 01296_ 6P-Y46(R) IFF system glitched. 01298_ EMP Blaster destroyed. 01300_ Lgt. EM Pulse Cannon destroyed. 01302_ Acquired Sub. Laser. 01307_ Imp. Terrain Scanner destroyed. 01344_ Subatomizers dissect the Corrupted Sub. Optics. 01359_ Acquired Mak. Hover Unit. 01366_ Subatomizers dissect the Corrupted Sub. Optics. 01423_ Lgt. Nuclear Core destroyed. 01424_ Slammed into S-10 Pest. 01425_ S-10 Pest destroyed. 01427_ Sub. Monowheel destroyed. Map ----- +----------------------------------------------------+ | ?????????????#???????#???# ##??????????? | | ????????????????????????## # # # # ##??????????? | | ????????????????????????# ######## #??????????? | | ????????????????????????## #?????# ##??????????? | | ????????????????????????## #?#?#### #??????????? | | ?????????????????????????# #?### ###?????????? | | ?????????????????????#??## ##?## #??????????? | | ????????????????????????# #??# ##?????????? | | ????????????????????????## #??# #?????????? | | ????????????????????????# #??## #?????????? | | ????????????????????????## ###?## ##?????????? | | ????????????????????????## #### ###??????????? | | ????????????????????????# ##????????????? | | ????????????????????????# ##???##???????? | | ????????????????????????# #????????????? | | ????????????????????????## ### ##???????????? | | ?????????????????????????####?### ###?????????? | | ????????????????????????????????# #????#????? | | ????????????????????????????????## ##?????????? | | ?????????????????????????????????## #??????????? | | ???????????????????????########??# #??????????? | | ???????????????????????#""" "#??# ##??#???????? | | ???????????????????????#" #??## #??????????? | | ??????????????????? ??#" ##### ###?????#???? | | ??????????????????????##""t s #?????????? | | ??????????????????????#> @ #????????? | | ??????????????????????##""t %s #???????? | | ???????????????????????#" ### #???????? | | ???????????????????????#" s ### #???????? | | ???????????????????????#""" "#?# ###???????? | | ???????????????????????########?# ##?????????? | | ???????????????????????????????? # #??????????? | | ???????????????????????????????? ## #??????????? | | ????????????????????????????????# ? #??????????? | | ????????????????????????????????# ? ??????????? | | ???????????????????????????????? #? ?????????? | | ????????????????????????????????## ?% #????????? | | ??????????????????????????????????# ?? ?????????? | | ??????????????????????????????????? ?? ??????????? | | ??????????????????????????????????? ?????????????? | | ?????????????????????????????????????????????????? | | ?????????????????????????????????????????????????? | | ?????????????????????????????????????????????????? | | ?????????????????????????????????????????????????? | | ?????????????????????????????????????????????????? | | ?????????????????????????????????????????????????? | | ?????????????????????????????????????????????????? | | ?????????????????????????????????????????????????? | | ?????????????????????????????????????????????????? | | ?????????????????????????????????????????????????? | +----------------------------------------------------+ Best States ------------- Heat Dissipation 25 Energy Generation 14 Energy Capacity 160 Matter Stores 300 Matter Capacity 300 Sight Range 16 Terrain Scan Range 16 Terrain Scan Density 10 Evasion (%) 40 Recoil Reduction 2 Item Schematics ----------------- None Robot Schematics ------------------ None Fabricated ------------ Nothing Alien Tech Used ----------------- None Achievements -------------- None Challenges ------------ None Game ------ Seed CooledJunkCyclogen Manual? 0 Play Time 00:13:15 Cumulative 56.0 hours Start 2025.04.26 @ 15:49:54 End 2025.04.26 @ 16:02:37 Sessions 1 Manual Loads 0 Difficulty Rogue Special Mode None Game No. 55 Rogue 51 Adventurer 4 Explorer 0 Win Type - Total 1 Types 1/0/0/0/0/0/0/0/0 Lore% 20 Gallery% 45 Achievement% 35 Wizard Run 0 Options --------- Layout 1 ASCII 0 Keyboard 1 Movement Numpad Keybinds 0 Fullscreen 1 Font 24/Smallcaps Map View 50x35 Zoom Use 0% Tactical HUD 1 Map Filters NONE Filters NONE Steam 1 RUN: ca7805a1-9c33-44a2-9761-791b459519e2